[Event "Titled Tuesday Blitz July 26 Early 2022"]
[White "Sovetbekova, Nurai"]
[Black "Bueno, Alfeu Junior Varela"]
[WhiteFideId "13801910"]
[BlackFideId "2108879"]
[WhiteElo "1646"]
[BlackElo "2162"]
[Result "0-1"]
[Round "05"]
[TimeControl "180+1"]
[Date "2022.07.27"]
[WhiteClock "0:00:09"]
[BlackClock "0:00:09"]

1. d4 {[%clk 0:03:00]}  e6 {[%clk 0:02:58]} 2. c4 {[%clk 0:03:00]}  f5 {[%clk 0:02:59]} 3. g3 {[%clk 0:02:57]}  Nf6 {[%clk 0:02:58]} 4. Bg2 {[%clk 0:02:57]}  Be7 {[%clk 0:02:59]} 5. Nc3 {[%clk 0:02:56]}  O-O {[%clk 0:02:59]} 6. d5 {[%clk 0:02:54]}  Bb4 {[%clk 0:02:59]} 7. Bd2 {[%clk 0:02:51]}  e5 {[%clk 0:02:52]} 8. Nf3 {[%clk 0:02:48]}  d6 {[%clk 0:02:44]} 9. O-O {[%clk 0:02:48]}  a6 {[%clk 0:02:30]} 10. a3 {[%clk 0:02:34]}  Ba5 {[%clk 0:02:24]} 11. Ng5 {[%clk 0:02:18]}  Qe8 {[%clk 0:02:14]} 12. Ne6 {[%clk 0:02:12]}  Bxe6 {[%clk 0:02:11]} 13. dxe6 {[%clk 0:02:12]}  c6 {[%clk 0:02:07]} 14. Be3 {[%clk 0:01:54]}  Bxc3 {[%clk 0:02:03]} 15. bxc3 {[%clk 0:01:54]}  Qxe6 {[%clk 0:02:03]} 16. c5 {[%clk 0:01:50]}  d5 {[%clk 0:02:01]} 17. Qb3 {[%clk 0:01:49]}  Rf7 {[%clk 0:01:57]} 18. f4 {[%clk 0:01:45]}  exf4 {[%clk 0:01:32]} 19. Bxf4 {[%clk 0:01:41]}  Qxe2 {[%clk 0:01:32]} 20. Rae1 {[%clk 0:01:37]}  Qb5 {[%clk 0:01:32]} 21. Qc2 {[%clk 0:01:33]}  Ne4 {[%clk 0:01:30]} 22. Be3 {[%clk 0:01:23]}  Nd7 {[%clk 0:01:29]} 23. Rb1 {[%clk 0:01:05]}  Qc4 {[%clk 0:01:23]} 24. Rb4 {[%clk 0:01:03]}  Qxc3 {[%clk 0:01:20]} 25. Bxe4 {[%clk 0:00:53]}  Qxe3+ {[%clk 0:01:19]} 26. Kg2 {[%clk 0:00:50]}  dxe4 {[%clk 0:01:10]} 27. Rxb7 {[%clk 0:00:47]}  Qxc5 {[%clk 0:01:09]} 28. Qxc5 {[%clk 0:00:36]}  Nxc5 {[%clk 0:01:07]} 29. Rxf7 {[%clk 0:00:37]}  Kxf7 {[%clk 0:01:01]} 30. Rxf5+ {[%clk 0:00:37]}  Ke6 {[%clk 0:00:59]} 31. Rxc5 {[%clk 0:00:38]}  Kd6 {[%clk 0:01:00]} 32. Rh5 {[%clk 0:00:26]}  h6 {[%clk 0:00:59]} 33. Kf2 {[%clk 0:00:25]}  Rf8+ {[%clk 0:00:55]} 34. Ke3 {[%clk 0:00:23]}  Rf3+ {[%clk 0:00:54]} 35. Kxe4 {[%clk 0:00:23]}  Rxa3 {[%clk 0:00:55]} 36. Rf5 {[%clk 0:00:19]}  Ra4+ {[%clk 0:00:51]} 37. Kd3 {[%clk 0:00:18]}  a5 {[%clk 0:00:43]} 38. Rf7 {[%clk 0:00:18]}  Rg4 {[%clk 0:00:42]} 39. Ra7 {[%clk 0:00:16]}  a4 {[%clk 0:00:43]} 40. Ke3 {[%clk 0:00:16]}  h5 {[%clk 0:00:42]} 41. Kf3 {[%clk 0:00:15]}  Kc5 {[%clk 0:00:22]} 42. h3 {[%clk 0:00:14]}  Kb6 {[%clk 0:00:21]} 43. Re7 {[%clk 0:00:12]}  Rg6 {[%clk 0:00:17]} 44. Re5 {[%clk 0:00:08]}  a3 {[%clk 0:00:17]} 45. Re3 {[%clk 0:00:08]}  Rf6+ {[%clk 0:00:14]} 46. Kg2 {[%clk 0:00:08]}  c5 {[%clk 0:00:08]} 47. Rxa3 {[%clk 0:00:08]}  c4 {[%clk 0:00:08]} 48. Rc3 {[%clk 0:00:07]}  Kb5 {[%clk 0:00:09]} 49. g4 {[%clk 0:00:08]}  hxg4 {[%clk 0:00:08]} 50. hxg4 {[%clk 0:00:09]}  Kb4 {[%clk 0:00:09]} 51. Rc1 {[%clk 0:00:09]}  c3 {[%clk 0:00:09]} 52. g5 {[%clk 0:00:09]}  Rf5 {[%clk 0:00:10]} 53. Kg3 {[%clk 0:00:10]}  Rxg5+ {[%clk 0:00:10]} 54. Kf4 {[%clk 0:00:10]}  Rd5 {[%clk 0:00:10]} 55. Ke4 {[%clk 0:00:10]}  Rd8 {[%clk 0:00:10]} 56. Rb1+ {[%clk 0:00:10]}  Ka3 {[%clk 0:00:10]} 57. Rb6 {[%clk 0:00:10]}  c2 {[%clk 0:00:11]} 58. Rc6 {[%clk 0:00:10]}  Kb2 {[%clk 0:00:11]} 59. Rb6+ {[%clk 0:00:10]}  Kc1 {[%clk 0:00:11]} 60. Rg6 {[%clk 0:00:10]}  Kd2 {[%clk 0:00:09]} 61. Rg2+ {[%clk 0:00:10]}  Kc3 {[%clk 0:00:09]} 62. Rg3+ {[%clk 0:00:11]}  Kb2 {[%clk 0:00:10]} 63. Rg2 {[%clk 0:00:11]}  Kb1 {[%clk 0:00:10]} 64. Rd2 {[%clk 0:00:09]}  Rxd2 {[%clk 0:00:09]} 0-1


[Site "https://www.chess.com"]

[Event "Titled Tuesday Blitz July 26 Early 2022"]
[White "Srihari L R"]
[Black "Urbina Perez, Juan Antonio"]
[WhiteFideId "46617116"]
[BlackFideId "2217368"]
[WhiteElo "2170"]
[BlackElo "2192"]
[Result "1-0"]
[Round "05"]
[TimeControl "180+1"]
[Date "2022.07.27"]
[WhiteClock "0:00:22"]
[BlackClock "0:00:44"]

1. d4 {[%clk 0:02:56]}  Nf6 {[%clk 0:02:56]} 2. Bg5 {[%clk 0:02:55]}  e6 {[%clk 0:02:54]} 3. Nd2 {[%clk 0:02:55]}  d5 {[%clk 0:02:54]} 4. e3 {[%clk 0:02:55]}  Be7 {[%clk 0:02:54]} 5. Bd3 {[%clk 0:02:55]}  Nbd7 {[%clk 0:02:48]} 6. f4 {[%clk 0:02:53]}  c5 {[%clk 0:02:47]} 7. c3 {[%clk 0:02:53]}  b6 {[%clk 0:02:46]} 8. Ngf3 {[%clk 0:02:53]}  Nh5 {[%clk 0:02:45]} 9. O-O {[%clk 0:02:50]}  Bxg5 {[%clk 0:02:42]} 10. fxg5 {[%clk 0:02:39]}  g6 {[%clk 0:02:39]} 11. Bb5 {[%clk 0:02:32]}  O-O {[%clk 0:02:36]} 12. h4 {[%clk 0:02:22]}  a5 {[%clk 0:02:32]} 13. a4 {[%clk 0:02:18]}  Ba6 {[%clk 0:02:29]} 14. Bxa6 {[%clk 0:02:12]}  Rxa6 {[%clk 0:02:30]} 15. Rf2 {[%clk 0:02:12]}  Qe7 {[%clk 0:02:24]} 16. Nh2 {[%clk 0:02:06]}  f5 {[%clk 0:02:19]} 17. gxf6 {[%clk 0:01:59]}  Ndxf6 {[%clk 0:02:19]} 18. g4 {[%clk 0:01:51]}  Ng7 {[%clk 0:02:18]} 19. Qe2 {[%clk 0:01:49]}  Raa8 {[%clk 0:02:15]} 20. Raf1 {[%clk 0:01:49]}  e5 {[%clk 0:02:14]} 21. dxe5 {[%clk 0:01:37]}  Qxe5 {[%clk 0:02:15]} 22. Ndf3 {[%clk 0:01:37]}  Qe4 {[%clk 0:01:58]} 23. Ng5 {[%clk 0:01:34]}  Qe5 {[%clk 0:01:57]} 24. Nhf3 {[%clk 0:01:19]}  Qd6 {[%clk 0:01:49]} 25. Rg2 {[%clk 0:01:06]}  Ne4 {[%clk 0:01:42]} 26. Nxe4 {[%clk 0:01:05]}  dxe4 {[%clk 0:01:43]} 27. Ng5 {[%clk 0:01:00]}  Rxf1+ {[%clk 0:01:41]} 28. Qxf1 {[%clk 0:00:59]}  Rf8 {[%clk 0:01:41]} 29. Qc4+ {[%clk 0:00:54]}  Kh8 {[%clk 0:01:19]} 30. Nf7+ {[%clk 0:00:48]}  Rxf7 {[%clk 0:01:19]} 31. Qxf7 {[%clk 0:00:48]}  h6 {[%clk 0:01:16]} 32. Qf4 {[%clk 0:00:39]}  Qd1+ {[%clk 0:01:09]} 33. Kh2 {[%clk 0:00:38]}  Kh7 {[%clk 0:01:10]} 34. Qxe4 {[%clk 0:00:34]}  Qe1 {[%clk 0:01:07]} 35. g5 {[%clk 0:00:27]}  Nf5 {[%clk 0:00:58]} 36. gxh6 {[%clk 0:00:26]}  Kxh6 {[%clk 0:00:57]} 37. Qf4+ {[%clk 0:00:24]}  Kh7 {[%clk 0:00:55]} 38. h5 {[%clk 0:00:24]}  Nh4 {[%clk 0:00:50]} 39. hxg6+ {[%clk 0:00:23]}  Kh8 {[%clk 0:00:44]} 40. Qf8# {[%clk 0:00:22]} 1-0


[Site "https://www.chess.com"]

[Event "Titled Tuesday Blitz July 26 Early 2022"]
[White "Svane, Frederik"]
[Black "Bortnyk, Olexandr"]
[WhiteFideId "12923044"]
[BlackFideId "14120828"]
[WhiteElo "2459"]
[BlackElo "2723"]
[Result "1-0"]
[Round "05"]
[TimeControl "180+1"]
[Date "2022.07.26"]
[WhiteClock "0:00:35"]
[BlackClock "0:00:20"]

1. e4 {[%clk 0:03:00]}  d6 {[%clk 0:02:58]} 2. d4 {[%clk 0:03:00]}  Nf6 {[%clk 0:02:59]} 3. Nd2 {[%clk 0:03:01]}  e5 {[%clk 0:02:56]} 4. c3 {[%clk 0:03:01]}  g6 {[%clk 0:02:43]} 5. Ngf3 {[%clk 0:03:01]}  Nbd7 {[%clk 0:02:43]} 6. Bd3 {[%clk 0:03:00]}  Bg7 {[%clk 0:02:43]} 7. O-O {[%clk 0:03:01]}  O-O {[%clk 0:02:44]} 8. Re1 {[%clk 0:03:01]}  b6 {[%clk 0:02:44]} 9. Nf1 {[%clk 0:03:01]}  Bb7 {[%clk 0:02:44]} 10. Ng3 {[%clk 0:03:01]}  Qe7 {[%clk 0:02:42]} 11. a4 {[%clk 0:02:56]}  a5 {[%clk 0:02:42]} 12. b3 {[%clk 0:02:57]}  Rfe8 {[%clk 0:02:41]} 13. Ba3 {[%clk 0:02:57]}  c5 {[%clk 0:02:41]} 14. d5 {[%clk 0:02:55]}  h6 {[%clk 0:02:41]} 15. Nd2 {[%clk 0:02:53]}  Nf8 {[%clk 0:02:36]} 16. Bb5 {[%clk 0:02:52]}  Reb8 {[%clk 0:02:36]} 17. Nc4 {[%clk 0:02:48]}  h5 {[%clk 0:02:30]} 18. Bc1 {[%clk 0:02:39]}  h4 {[%clk 0:02:30]} 19. Nf1 {[%clk 0:02:39]}  N8h7 {[%clk 0:02:24]} 20. h3 {[%clk 0:02:36]}  Bc8 {[%clk 0:02:22]} 21. Nh2 {[%clk 0:02:32]}  Nh5 {[%clk 0:02:18]} 22. Ra2 {[%clk 0:02:25]}  Nf4 {[%clk 0:02:12]} 23. Bxf4 {[%clk 0:02:22]}  exf4 {[%clk 0:02:13]} 24. e5 {[%clk 0:02:23]}  dxe5 {[%clk 0:02:07]} 25. Rae2 {[%clk 0:02:07]}  f6 {[%clk 0:02:07]} 26. Nf3 {[%clk 0:01:47]}  g5 {[%clk 0:01:51]} 27. d6 {[%clk 0:01:46]}  Qd8 {[%clk 0:01:50]} 28. Nfxe5 {[%clk 0:01:34]}  fxe5 {[%clk 0:01:46]} 29. Nxe5 {[%clk 0:01:35]}  Bxe5 {[%clk 0:01:30]} 30. Rxe5 {[%clk 0:01:26]}  Bd7 {[%clk 0:01:20]} 31. Qd5+ {[%clk 0:01:04]}  Kh8 {[%clk 0:01:13]} 32. Re7 {[%clk 0:01:05]}  Qf8 {[%clk 0:01:06]} 33. Bxd7 {[%clk 0:00:58]}  Rd8 {[%clk 0:01:01]} 34. Rf7 {[%clk 0:00:39]}  Rxd7 {[%clk 0:00:28]} 35. Rxd7 {[%clk 0:00:39]}  Nf6 {[%clk 0:00:26]} 36. Qe5 {[%clk 0:00:39]}  f3 {[%clk 0:00:20]} 37. Re7 {[%clk 0:00:38]}  fxg2 {[%clk 0:00:20]} 38. Re6 {[%clk 0:00:35]} 1-0


[Site "https://www.chess.com"]

[Event "Titled Tuesday Blitz July 26 Early 2022"]
[White "Tatarinov, Dmitry"]
[Black "Chigaev, Maksim"]
[WhiteFideId "24160067"]
[BlackFideId "4108116"]
[WhiteElo "2302"]
[BlackElo "2438"]
[Result "0-1"]
[Round "05"]
[TimeControl "180+1"]
[Date "2022.07.26"]
[WhiteClock "0:00:13"]
[BlackClock "0:00:05"]

1. c4 {[%clk 0:03:00]}  c6 {[%clk 0:02:58]} 2. d4 {[%clk 0:03:00]}  d5 {[%clk 0:02:57]} 3. Nf3 {[%clk 0:03:01]}  Nf6 {[%clk 0:02:57]} 4. e3 {[%clk 0:03:01]}  a6 {[%clk 0:02:57]} 5. Nbd2 {[%clk 0:03:00]}  Bf5 {[%clk 0:02:56]} 6. Be2 {[%clk 0:02:53]}  h6 {[%clk 0:02:54]} 7. O-O {[%clk 0:02:53]}  e6 {[%clk 0:02:55]} 8. b3 {[%clk 0:02:54]}  Nbd7 {[%clk 0:02:55]} 9. Bb2 {[%clk 0:02:54]}  Bb4 {[%clk 0:02:55]} 10. a3 {[%clk 0:02:54]}  Be7 {[%clk 0:02:52]} 11. Rc1 {[%clk 0:02:50]}  O-O {[%clk 0:02:52]} 12. b4 {[%clk 0:02:50]}  Re8 {[%clk 0:02:49]} 13. Nb3 {[%clk 0:02:50]}  Nb6 {[%clk 0:02:46]} 14. Na5 {[%clk 0:02:49]}  Rb8 {[%clk 0:02:45]} 15. Ne5 {[%clk 0:02:47]}  dxc4 {[%clk 0:02:41]} 16. Nexc4 {[%clk 0:02:45]}  Nxc4 {[%clk 0:02:40]} 17. Bxc4 {[%clk 0:02:45]}  Bd6 {[%clk 0:02:35]} 18. Re1 {[%clk 0:02:37]}  Ne4 {[%clk 0:02:13]} 19. g3 {[%clk 0:02:32]}  Qg5 {[%clk 0:02:08]} 20. Bf1 {[%clk 0:02:28]}  h5 {[%clk 0:01:55]} 21. Bg2 {[%clk 0:02:21]}  h4 {[%clk 0:01:53]} 22. Nc4 {[%clk 0:02:20]}  Nxf2 {[%clk 0:01:32]} 23. Kxf2 {[%clk 0:02:12]}  hxg3+ {[%clk 0:01:00]} 24. hxg3 {[%clk 0:01:45]}  Bxg3+ {[%clk 0:00:56]} 25. Kf1 {[%clk 0:01:45]}  Bg4 {[%clk 0:00:45]} 26. Qd2 {[%clk 0:01:38]}  e5 {[%clk 0:00:37]} 27. e4 {[%clk 0:01:32]}  Bf4 {[%clk 0:00:36]} 28. Qf2 {[%clk 0:01:29]}  exd4 {[%clk 0:00:33]} 29. Qxd4 {[%clk 0:01:22]}  Rbd8 {[%clk 0:00:33]} 30. Qf2 {[%clk 0:01:20]}  Bxc1 {[%clk 0:00:30]} 31. Rxc1 {[%clk 0:01:16]}  Be6 {[%clk 0:00:28]} 32. Ne3 {[%clk 0:01:09]}  Rd3 {[%clk 0:00:28]} 33. Re1 {[%clk 0:01:05]}  Red8 {[%clk 0:00:28]} 34. Bc1 {[%clk 0:01:04]}  Qe5 {[%clk 0:00:21]} 35. Kg1 {[%clk 0:00:59]}  Rb3 {[%clk 0:00:17]} 36. Nf5 {[%clk 0:00:56]}  Rb1 {[%clk 0:00:12]} 37. Bf4 {[%clk 0:00:51]}  Rxe1+ {[%clk 0:00:11]} 38. Kh2 {[%clk 0:00:49]}  Qc3 {[%clk 0:00:05]} 39. Ng3 {[%clk 0:00:24]}  Rdd1 {[%clk 0:00:04]} 40. Nh5 {[%clk 0:00:20]}  Qd4 {[%clk 0:00:03]} 41. Qg3 {[%clk 0:00:20]}  Re2 {[%clk 0:00:03]} 42. Be5 {[%clk 0:00:15]}  Rxg2+ {[%clk 0:00:03]} 43. Kxg2 {[%clk 0:00:13]}  Rg1+ {[%clk 0:00:03]} 44. Kh2 {[%clk 0:00:13]}  Rxg3 {[%clk 0:00:04]} 45. Bxd4 {[%clk 0:00:13]}  Rh3+ {[%clk 0:00:04]} 46. Kg2 {[%clk 0:00:13]}  Rxh5 {[%clk 0:00:05]} 0-1


[Site "https://www.chess.com"]

[Event "Titled Tuesday Blitz July 26 Early 2022"]
[White "Turzo, Attila"]
[Black "Harsh Suresh"]
[WhiteFideId "704954"]
[BlackFideId "45018464"]
[WhiteElo "2479"]
[BlackElo "2059"]
[Result "0-1"]
[Round "05"]
[TimeControl "180+1"]
[Date "2022.07.27"]
[WhiteClock "0:00:03"]
[BlackClock "0:00:09"]

1. e4 {[%clk 0:03:00]}  c6 {[%clk 0:02:56]} 2. d4 {[%clk 0:03:00]}  d5 {[%clk 0:02:55]} 3. e5 {[%clk 0:03:00]}  Bf5 {[%clk 0:02:53]} 4. Nd2 {[%clk 0:03:01]}  e6 {[%clk 0:02:51]} 5. Nb3 {[%clk 0:03:01]}  a6 {[%clk 0:02:51]} 6. Nf3 {[%clk 0:03:01]}  c5 {[%clk 0:02:47]} 7. dxc5 {[%clk 0:02:38]}  Bxc5 {[%clk 0:02:46]} 8. Nxc5 {[%clk 0:02:37]}  Qa5+ {[%clk 0:02:46]} 9. c3 {[%clk 0:02:36]}  Qxc5 {[%clk 0:02:46]} 10. Be3 {[%clk 0:02:35]}  Qc7 {[%clk 0:02:45]} 11. Be2 {[%clk 0:02:34]}  Nc6 {[%clk 0:02:45]} 12. Bd4 {[%clk 0:02:32]}  Nge7 {[%clk 0:02:44]} 13. Bc5 {[%clk 0:01:53]}  Nxe5 {[%clk 0:02:40]} 14. Bxe7 {[%clk 0:01:53]}  Nxf3+ {[%clk 0:02:40]} 15. Bxf3 {[%clk 0:01:53]}  Qxe7 {[%clk 0:02:40]} 16. O-O {[%clk 0:01:54]}  O-O {[%clk 0:02:39]} 17. Re1 {[%clk 0:01:54]}  Qf6 {[%clk 0:02:39]} 18. c4 {[%clk 0:01:44]}  dxc4 {[%clk 0:02:32]} 19. Bxb7 {[%clk 0:01:43]}  Ra7 {[%clk 0:02:32]} 20. Be4 {[%clk 0:01:34]}  Qxb2 {[%clk 0:02:24]} 21. Bxf5 {[%clk 0:01:34]}  exf5 {[%clk 0:02:25]} 22. Re2 {[%clk 0:01:34]}  Qf6 {[%clk 0:02:21]} 23. Rc1 {[%clk 0:01:27]}  Rc7 {[%clk 0:02:17]} 24. Qa4 {[%clk 0:01:18]}  c3 {[%clk 0:02:15]} 25. f4 {[%clk 0:01:11]}  g6 {[%clk 0:02:12]} 26. g3 {[%clk 0:01:11]}  Rfc8 {[%clk 0:02:11]} 27. Rec2 {[%clk 0:01:07]}  h5 {[%clk 0:02:10]} 28. Kg2 {[%clk 0:01:00]}  Qe6 {[%clk 0:01:58]} 29. Kh3 {[%clk 0:00:56]}  Qf6 {[%clk 0:01:44]} 30. Qa5 {[%clk 0:00:52]}  Kg7 {[%clk 0:01:43]} 31. Re1 {[%clk 0:00:50]}  h4 {[%clk 0:01:39]} 32. Qe5 {[%clk 0:00:35]}  hxg3 {[%clk 0:01:35]} 33. hxg3 {[%clk 0:00:33]}  Qxe5 {[%clk 0:01:29]} 34. Rxe5 {[%clk 0:00:33]}  Kf6 {[%clk 0:01:29]} 35. Kg2 {[%clk 0:00:31]}  Rb8 {[%clk 0:01:19]} 36. Ree2 {[%clk 0:00:29]}  Rb4 {[%clk 0:01:19]} 37. Kf3 {[%clk 0:00:29]}  a5 {[%clk 0:01:10]} 38. Ke3 {[%clk 0:00:19]}  Rb6 {[%clk 0:01:04]} 39. Kd3 {[%clk 0:00:15]}  Rd6+ {[%clk 0:01:03]} 40. Ke3 {[%clk 0:00:15]}  a4 {[%clk 0:00:53]} 41. Kf3 {[%clk 0:00:16]}  Rb6 {[%clk 0:00:48]} 42. Re3 {[%clk 0:00:16]}  Rb2 {[%clk 0:00:47]} 43. Rcxc3 {[%clk 0:00:15]}  Rxc3 {[%clk 0:00:47]} 44. Rxc3 {[%clk 0:00:16]}  Rxa2 {[%clk 0:00:48]} 45. Rc6+ {[%clk 0:00:16]}  Kg7 {[%clk 0:00:47]} 46. Ra6 {[%clk 0:00:15]}  a3 {[%clk 0:00:47]} 47. Ke3 {[%clk 0:00:14]}  Ra1 {[%clk 0:00:40]} 48. Kf2 {[%clk 0:00:13]}  Kf8 {[%clk 0:00:40]} 49. Kg2 {[%clk 0:00:13]}  Ke7 {[%clk 0:00:40]} 50. Kf2 {[%clk 0:00:13]}  Kd7 {[%clk 0:00:40]} 51. Kg2 {[%clk 0:00:14]}  Kc7 {[%clk 0:00:40]} 52. Ra7+ {[%clk 0:00:13]}  Kb6 {[%clk 0:00:40]} 53. Ra8 {[%clk 0:00:11]}  Kb5 {[%clk 0:00:39]} 54. Ra7 {[%clk 0:00:11]}  Kb4 {[%clk 0:00:39]} 55. Rxf7 {[%clk 0:00:12]}  Kb3 {[%clk 0:00:38]} 56. Rb7+ {[%clk 0:00:09]}  Ka2 {[%clk 0:00:38]} 57. Rb6 {[%clk 0:00:08]}  Rc1 {[%clk 0:00:37]} 58. Rxg6 {[%clk 0:00:08]}  Rc2+ {[%clk 0:00:37]} 59. Kh3 {[%clk 0:00:07]}  Kb1 {[%clk 0:00:37]} 60. Ra6 {[%clk 0:00:06]}  a2 {[%clk 0:00:37]} 61. g4 {[%clk 0:00:07]}  fxg4+ {[%clk 0:00:15]} 62. Kxg4 {[%clk 0:00:08]}  Kb2 {[%clk 0:00:15]} 63. f5 {[%clk 0:00:06]}  Rc3 {[%clk 0:00:15]} 64. Rxa2+ {[%clk 0:00:05]}  Kxa2 {[%clk 0:00:16]} 65. f6 {[%clk 0:00:06]}  Rc8 {[%clk 0:00:10]} 66. f7 {[%clk 0:00:06]}  Rf8 {[%clk 0:00:08]} 67. Kg5 {[%clk 0:00:03]}  Rxf7 {[%clk 0:00:09]} 0-1


[Site "https://www.chess.com"]

[Event "Titled Tuesday Blitz July 26 Early 2022"]
[White "Vakhlamov, Igor L."]
[Black "Oparin, Grigoriy"]
[WhiteFideId "24126748"]
[BlackFideId "24125890"]
[WhiteElo "2401"]
[BlackElo "2639"]
[Result "1-0"]
[Round "05"]
[TimeControl "180+1"]
[Date "2022.07.26"]
[WhiteClock "0:00:14"]
[BlackClock "0:00:10"]

1. e4 {[%clk 0:03:00]}  c5 {[%clk 0:03:00]} 2. Nf3 {[%clk 0:03:00]}  d6 {[%clk 0:03:00]} 3. Nc3 {[%clk 0:03:00]}  Nf6 {[%clk 0:03:01]} 4. d4 {[%clk 0:03:00]}  cxd4 {[%clk 0:03:01]} 5. Qxd4 {[%clk 0:03:01]}  Nc6 {[%clk 0:03:00]} 6. Bb5 {[%clk 0:03:02]}  Bd7 {[%clk 0:03:01]} 7. Bxc6 {[%clk 0:03:02]}  Bxc6 {[%clk 0:03:01]} 8. Bg5 {[%clk 0:03:02]}  e6 {[%clk 0:03:02]} 9. O-O-O {[%clk 0:03:02]}  Be7 {[%clk 0:03:01]} 10. Rhe1 {[%clk 0:03:03]}  Qa5 {[%clk 0:02:54]} 11. Nd5 {[%clk 0:03:03]}  Bxd5 {[%clk 0:02:08]} 12. exd5 {[%clk 0:03:02]}  O-O {[%clk 0:02:08]} 13. dxe6 {[%clk 0:02:57]}  Qxa2 {[%clk 0:02:08]} 14. exf7+ {[%clk 0:02:50]}  Rxf7 {[%clk 0:02:09]} 15. Re3 {[%clk 0:02:40]}  Qa1+ {[%clk 0:01:59]} 16. Kd2 {[%clk 0:02:40]}  Qa5+ {[%clk 0:02:00]} 17. Kc1 {[%clk 0:02:36]}  Rc8 {[%clk 0:01:58]} 18. Kb1 {[%clk 0:02:31]}  h6 {[%clk 0:01:52]} 19. Bh4 {[%clk 0:02:30]}  Qf5 {[%clk 0:01:44]} 20. Qd3 {[%clk 0:02:21]}  Qxd3 {[%clk 0:01:36]} 21. Rdxd3 {[%clk 0:02:22]}  Bf8 {[%clk 0:01:35]} 22. Bg3 {[%clk 0:02:08]}  Rd8 {[%clk 0:01:20]} 23. Ne5 {[%clk 0:01:46]}  Re7 {[%clk 0:01:16]} 24. Nc4 {[%clk 0:01:38]}  Rxe3 {[%clk 0:01:15]} 25. Nxe3 {[%clk 0:01:39]}  d5 {[%clk 0:01:15]} 26. Be5 {[%clk 0:01:36]}  Ne4 {[%clk 0:01:14]} 27. f3 {[%clk 0:01:32]}  Nc5 {[%clk 0:01:12]} 28. Rxd5 {[%clk 0:01:30]}  Rxd5 {[%clk 0:01:12]} 29. Nxd5 {[%clk 0:01:31]}  Kf7 {[%clk 0:01:13]} 30. Bd4 {[%clk 0:01:28]}  a6 {[%clk 0:01:10]} 31. c4 {[%clk 0:01:24]}  Nd7 {[%clk 0:01:07]} 32. Kc2 {[%clk 0:01:22]}  Bd6 {[%clk 0:01:05]} 33. h3 {[%clk 0:01:16]}  g6 {[%clk 0:01:04]} 34. Kd3 {[%clk 0:01:16]}  h5 {[%clk 0:01:04]} 35. b3 {[%clk 0:01:15]}  Ke6 {[%clk 0:01:02]} 36. Ke4 {[%clk 0:01:13]}  Kf7 {[%clk 0:00:54]} 37. g4 {[%clk 0:01:08]}  hxg4 {[%clk 0:00:51]} 38. fxg4 {[%clk 0:01:09]}  Bg3 {[%clk 0:00:46]} 39. Kf3 {[%clk 0:00:53]}  Bh4 {[%clk 0:00:46]} 40. Ke4 {[%clk 0:00:51]}  Bg3 {[%clk 0:00:46]} 41. Nb4 {[%clk 0:00:48]}  Nf8 {[%clk 0:00:27]} 42. Nd3 {[%clk 0:00:45]}  Ne6 {[%clk 0:00:27]} 43. Be3 {[%clk 0:00:42]}  Kf6 {[%clk 0:00:23]} 44. Nc5 {[%clk 0:00:37]}  Nxc5+ {[%clk 0:00:20]} 45. Bxc5 {[%clk 0:00:38]}  Ke6 {[%clk 0:00:21]} 46. Be3 {[%clk 0:00:37]}  b5 {[%clk 0:00:21]} 47. cxb5 {[%clk 0:00:34]}  axb5 {[%clk 0:00:22]} 48. Bg5 {[%clk 0:00:34]}  Bf2 {[%clk 0:00:21]} 49. h4 {[%clk 0:00:34]}  Bg3 {[%clk 0:00:21]} 50. h5 {[%clk 0:00:35]}  gxh5 {[%clk 0:00:21]} 51. gxh5 {[%clk 0:00:35]}  Be1 {[%clk 0:00:17]} 52. Bd8 {[%clk 0:00:33]}  Bc3 {[%clk 0:00:17]} 53. Bb6 {[%clk 0:00:32]}  Bd2 {[%clk 0:00:16]} 54. Bd4 {[%clk 0:00:31]}  Bh6 {[%clk 0:00:15]} 55. Bc3 {[%clk 0:00:30]}  Bg5 {[%clk 0:00:15]} 56. Bg7 {[%clk 0:00:29]}  Be7 {[%clk 0:00:15]} 57. h6 {[%clk 0:00:24]}  Kf7 {[%clk 0:00:15]} 58. Ke3 {[%clk 0:00:24]}  Kg6 {[%clk 0:00:14]} 59. Ke4 {[%clk 0:00:24]}  b4 {[%clk 0:00:11]} 60. Kd5 {[%clk 0:00:25]}  Bg5 {[%clk 0:00:11]} 61. Ke6 {[%clk 0:00:24]}  Bd2 {[%clk 0:00:11]} 62. Ke7 {[%clk 0:00:20]}  Bc3 {[%clk 0:00:10]} 63. Kf8 {[%clk 0:00:18]}  Bd2 {[%clk 0:00:10]} 64. Kg8 {[%clk 0:00:14]}  Bxh6 {[%clk 0:00:06]} 65. Bxh6 {[%clk 0:00:14]}  Kxh6 {[%clk 0:00:07]} 66. Kf7 {[%clk 0:00:15]}  Kh7 {[%clk 0:00:07]} 67. Ke6 {[%clk 0:00:14]}  Kg8 {[%clk 0:00:08]} 68. Kd6 {[%clk 0:00:14]}  Kf8 {[%clk 0:00:09]} 69. Kc5 {[%clk 0:00:15]}  Ke7 {[%clk 0:00:09]} 70. Kxb4 {[%clk 0:00:16]}  Kd7 {[%clk 0:00:10]} 71. Kb5 {[%clk 0:00:15]}  Kc7 {[%clk 0:00:10]} 72. Kc5 {[%clk 0:00:14]}  Kc8 {[%clk 0:00:10]} 73. Kc6 {[%clk 0:00:14]} 1-0


[Site "https://www.chess.com"]